{"text_format":"3","workbook":"xlsx","n_sheets":3,"sheets":["rekompensata","zaliczki","rozliczenie"],"not_rendered":{"defined_names":2},"read":"whole","date_system":"1900"}

{"sheet":"rekompensata","index":0,"n_rows":21,"n_cols":8,"rows_kept":21,"merged":[[0,0,0,7],[1,6,1,7],[2,6,2,7],[3,0,4,0],[3,1,4,1],[3,2,4,2],[3,3,4,3],[3,4,4,4],[3,5,4,5],[3,6,4,7],[5,6,5,7],[9,6,16,7],[18,1,18,7],[19,1,19,7],[20,1,20,7]]}
["Obliczenie wielkości rekompensaty netto dla danego źródła"]
[null,"Przedstawione dane są założeniami",null,"CIEPŁO WYTWARZANE Z:","GAZU ZIEMNEGO LUB OLEJU OPAŁOWEGO ","POZOSTAŁYCH PALIW","% udział ciepła przeznaczony dla odbiorców uprawnionych"]
[{"$nulls":3},"UDZIAŁ PROCENTOWY [%] - źródło X",{"v":0,"d":"0%"},{"$f":"1-E3","v":{"v":1,"d":"100%"}},{"v":0,"d":"0%"}]
["Lp.","Wyszczególnienie","j.m.","Symbol","źródło danych","źródło X","ceny ciepła z rekompensatą dla źródła 2"]
[]
["I.","Wytwarzanie ciepła w źródle "]
["1.","cena ciepła","zł/GJ","CC","z taryfy lub z cennika",0,"CCR/SCR",{"$f":"IF(F$14<F$15,\"-\",F$15/F$14*F7)","v":{"$error":"#DIV/0!"}}]
["2.","cena za zamówioną moc cieplną","zł/MW/rok","CM/SM","z taryfy lub z cennika",0,"CMR/SMR",{"$f":"IF(F$14<F$15,\"-\",F$15/F$14*F8)","v":{"$error":"#DIV/0!"}}]
["3.","cena nośnika ciepła","zł/m3(t)","CN","z taryfy lub z cennika",0,"CNR",{"$error":"#DIV/0!"}]
["4.","planowana ilość ciepła dla danego źródła ciepła","GJ","PSC","z ostatniej kalkulacji",0]
["5.","planowana zamówiona moc cieplna","MW","PMZ","z ostatniej kalkulacji",0]
["6.","planownana ilość sprzedanego nośnika ciepła","m3","PSN","z ostatniej kalkulacji",0]
["7.","planowany przychód","zł",null,"obliczony",{"$f":"F7*F10+F8*F11+F9*F12","v":0}]
["8.","średnia cena wytwarzania ciepła                            ","zł/GJ","CT","obliczona",{"$f":"F13/F10","v":{"$error":"#DIV/0!"}}]
["9.","średnia cena wytwarzania ciepła z rekompensatą",null,"CR","z ustawy",{"$f":"150.95*E3+103.82*F3","v":103.82}]
["10.","czy należy się rekompensata","zł/GJ",null,"porównanie",{"$f":"F14-F15","v":{"$error":"#DIV/0!"}}]
["11.","wielkość należnej rekompensaty wynikająca z wartości przyjętej jako planowana ilość ciepła dla danego źródła ciepła (PSC)","zł",null,"obliczona",{"$f":"IF((F10*F16*G3)>0,(F10*F16*G3),0)","v":{"$error":"#DIV/0!"}}]
[null,null,"Komórka edytowalna"]
[]
[]
[null,"Komórka edytowalna"]

{"sheet":"zaliczki","index":1,"n_rows":39,"n_cols":6,"rows_kept":39,"merged":[[0,0,0,5],[1,0,2,0],[1,1,2,1],[1,2,2,2],[1,3,2,3],[1,4,1,5],[17,0,17,3],[30,0,30,3],[35,0,35,3]]}
["Obliczenie wielkości miesięcznych rekompensat netto dla danego źródła"]
["Lp.","Wyszczególnienie","j.m.",null,"źródło ciepła stosujące średnią cenę wytwarzania ciepła z rekompensatą"]
[{"$nulls":4},"wolumen ciepła","wysokość rekompensaty"]
["I.","Wytwarzanie ciepła w źródle ",null,null,"GJ","ZŁ"]
["1.","Planowane ilości ciepła sprzedanego w miesiącach:"]
["a)","Październik, w tym na potrzeby:","GJ","wartość szacowana przez odbiorcę",{"v":0,"d":"0.0"},{"$f":"(E7+E8)*$E$38","v":{"$error":"#DIV/0!"}}]
["-","gospodarstw domowych w lokalach mieszkalnych i na potrzeby części wspólnych budynków wielolokalowych, o których mowa w art. 4 ust. 1 pkt 2 i 3 ustawy","%",{"v":0,"d":"0%"},{"$f":"D7*E6","v":{"v":0,"d":"0.0"}}]
["-","podmiotów, o których mowa w art. 4 ust. 1 pkt 4, prowadzących działalność w lokalach odbiorców, o których mowa w art. 4 ust. 1 pkt 2 i 3","%",{"v":0,"d":"0%"},{"$f":"D8*E6","v":{"v":0,"d":"0.0"}}]
["-","innych","%",{"$f":"1-D7-D8","v":{"v":1,"d":"100%"}},{"$f":"D9*E6","v":{"v":0,"d":"0.0"}}]
["b)","Listopad","GJ","wartość szacowana przez odbiorcę",{"v":0,"d":"0.0"},{"$f":"(E11+E12)*$E$38","v":{"$error":"#DIV/0!"}}]
["-","gospodarstw domowych w lokalach mieszkalnych i na potrzeby części wspólnych budynków wielolokalowych, o których mowa w art. 4 ust. 1 pkt 2 i 3 ustawy","%",{"v":0,"d":"0%"},{"$f":"D11*E10","v":{"v":0,"d":"0.0"}}]
["-","podmiotów, o których mowa w art. 4 ust. 1 pkt 4, prowadzących działalność w lokalach odbiorców, o których mowa w art. 4 ust. 1 pkt 2 i 3","%",{"v":0,"d":"0%"},{"$f":"D12*E10","v":{"v":0,"d":"0.0"}}]
["-","innych","%",{"$f":"1-D11-D12","v":{"v":1,"d":"100%"}},{"$f":"D13*E10","v":{"v":0,"d":"0.0"}}]
["c)","Grudzień","GJ","wartość szacowana przez odbiorcę",{"v":0,"d":"0.0"},{"$f":"(E15+E16)*$E$38","v":{"$error":"#DIV/0!"}}]
["-","gospodarstw domowych w lokalach mieszkalnych i na potrzeby części wspólnych budynków wielolokalowych, o których mowa w art. 4 ust. 1 pkt 2 i 3 ustawy","%",{"v":0,"d":"0%"},{"$f":"D15*E14","v":{"v":0,"d":"0.0"}}]
["-","podmiotów, o których mowa w art. 4 ust. 1 pkt 4, prowadzących działalność w lokalach odbiorców, o których mowa w art. 4 ust. 1 pkt 2 i 3","%",{"v":0,"d":"0%"},{"$f":"D16*E14","v":{"v":0,"d":"0.0"}}]
["-","innych","%",{"$f":"1-D15-D16","v":{"v":1,"d":"100%"}},{"$f":"D17*E14","v":{"v":0,"d":"0.0"}}]
["OKRES I",{"$nulls":3},{"$f":"E7+E8+E11+E12+E15+E16","v":{"v":0,"d":"0.0"}},{"$f":"F6+F10+F14","v":{"$error":"#DIV/0!"}}]
["d)","Styczeń","GJ","wartość szacowana przez odbiorcę",{"v":0,"d":"0.0"},{"$f":"(E20+E21)*$E$38","v":{"$error":"#DIV/0!"}}]
["-","gospodarstw domowych w lokalach mieszkalnych i na potrzeby części wspólnych budynków wielolokalowych, o których mowa w art. 4 ust. 1 pkt 2 i 3 ustawy","%",{"v":0,"d":"0%"},{"$f":"D20*E19","v":{"v":0,"d":"0.0"}}]
["-","podmiotów, o których mowa w art. 4 ust. 1 pkt 4, prowadzących działalność w lokalach odbiorców, o których mowa w art. 4 ust. 1 pkt 2 i 3","%",{"v":0,"d":"0%"},{"$f":"D21*E19","v":{"v":0,"d":"0.0"}}]
["-","innych","%",{"$f":"1-D20-D21","v":{"v":1,"d":"100%"}},{"$f":"D22*E19","v":{"v":0,"d":"0.0"}}]
["e)","Luty","GJ","wartość szacowana przez odbiorcę",{"v":0,"d":"0.0"},{"$f":"(E24+E25)*$E$38","v":{"$error":"#DIV/0!"}}]
["-","gospodarstw domowych w lokalach mieszkalnych i na potrzeby części wspólnych budynków wielolokalowych, o których mowa w art. 4 ust. 1 pkt 2 i 3 ustawy","%",{"v":0,"d":"0%"},{"$f":"D24*E23","v":{"v":0,"d":"0.0"}}]
["-","podmiotów, o których mowa w art. 4 ust. 1 pkt 4, prowadzących działalność w lokalach odbiorców, o których mowa w art. 4 ust. 1 pkt 2 i 3","%",{"v":0,"d":"0%"},{"$f":"D25*E23","v":{"v":0,"d":"0.0"}}]
["-","innych","%",{"$f":"1-D24-D25","v":{"v":1,"d":"100%"}},{"$f":"D26*E23","v":{"v":0,"d":"0.0"}}]
["f)","Marzec","GJ","wartość szacowana przez odbiorcę",{"v":0,"d":"0.0"},{"$f":"(E28+E29)*$E$38","v":{"$error":"#DIV/0!"}}]
["-","gospodarstw domowych w lokalach mieszkalnych i na potrzeby części wspólnych budynków wielolokalowych, o których mowa w art. 4 ust. 1 pkt 2 i 3 ustawy","%",{"v":0,"d":"0%"},{"$f":"D28*E27","v":{"v":0,"d":"0.0"}}]
["-","podmiotów, o których mowa w art. 4 ust. 1 pkt 4, prowadzących działalność w lokalach odbiorców, o których mowa w art. 4 ust. 1 pkt 2 i 3","%",{"v":0,"d":"0%"},{"$f":"D29*E27","v":{"v":0,"d":"0.0"}}]
["-","innych","%",{"$f":"1-D28-D29","v":{"v":1,"d":"100%"}},{"$f":"D30*E27","v":{"v":0,"d":"0.0"}}]
["OKRES II",{"$nulls":3},{"$f":"E20+E21+E24+E25+E28+E29","v":{"v":0,"d":"0.0"}},{"$f":"F19+F23+F27","v":{"$error":"#DIV/0!"}}]
["g)","Kwiecień","GJ","wartość szacowana przez odbiorcę",{"v":0,"d":"0.0"},{"$f":"(E33+E34)*$E$38","v":{"$error":"#DIV/0!"}}]
["-","gospodarstw domowych w lokalach mieszkalnych i na potrzeby części wspólnych budynków wielolokalowych, o których mowa w art. 4 ust. 1 pkt 2 i 3 ustawy","%",{"v":0,"d":"0%"},{"$f":"D33*E32","v":{"v":0,"d":"0.0"}}]
["-","podmiotów, o których mowa w art. 4 ust. 1 pkt 4, prowadzących działalność w lokalach odbiorców, o których mowa w art. 4 ust. 1 pkt 2 i 3","%",{"v":0,"d":"0%"},{"$f":"D34*E32","v":{"v":0,"d":"0.0"}}]
["-","innych","%",{"$f":"1-D33-D34","v":{"v":1,"d":"100%"}},{"$f":"D35*E32","v":{"v":0,"d":"0.0"}}]
["OKRES III",{"$nulls":3},{"$f":"E33+E34","v":{"v":0,"d":"0.0"}},{"$f":"F24+F28+F32","v":{"$error":"#DIV/0!"}}]
["2.","średnia cena wytwarzania ciepła z rekompensatą","zł/GJ","arkusz \"rekompensata\"",{"$f":"rekompensata!F15","v":103.82}]
["3.","czy należy się rekompensata","zł/GJ","arkusz \"rekompensata\"",{"$f":"rekompensata!F16","v":{"$error":"#DIV/0!"}},{"$f":"IF(E38>0,\"NALEŻY SIĘ\",\"NIE NALEŻY SIĘ\")","v":{"$error":"#DIV/0!"}}]
[null,"Komórka edytowalna"]

{"sheet":"rozliczenie","index":2,"n_rows":36,"n_cols":8,"rows_kept":36,"merged":[[0,0,0,6],[1,0,2,0],[1,1,2,1],[1,2,2,2],[1,3,2,3],[1,4,1,7]]}
["Rozliczenie miesięcznych rekompensat netto dla danego źródła"]
["Lp.","Wyszczególnienie","j.m.",null,"źródło ciepła stosujące średnią cenę wytwarzania ciepła z rekompensatą"]
[{"$nulls":4},"wolumen ciepła na wartościach planowanych","wolumen ciepła na watościach rzeczywistych","wysokość rekompensaty na wartościach planowanych","wysokość rekompensaty na wartościach rzeczywistych"]
["I.","Wytwarzanie ciepła w źródle "]
["1.","Rzeczywista ilość ciepła z rekompenstą sprzedana w miesiącu:"]
["a)","Październik, w tym na potrzeby:","GJ","na podstawie wystawionych faktur",{"$f":"zaliczki!E6","v":{"v":0,"d":"0.0"}},{"v":0,"d":"0.0"},{"$f":"(E7+E8)*$E$35","v":{"$error":"#DIV/0!"}},{"$f":"(F7+F8)*$E$35","v":{"$error":"#DIV/0!"}}]
["-","gospodarstw domowych w lokalach mieszkalnych i na potrzeby części wspólnych budynków wielolokalowych, o których mowa w art. 4 ust. 1 pkt 2 i 3 ustawy","%",{"v":0,"d":"0%"},{"$f":"zaliczki!E7","v":{"v":0,"d":"0.0"}},{"$f":"$D7*F6","v":{"v":0,"d":"0.0"}}]
["-","podmiotów, o których mowa w art. 4 ust. 1 pkt 4, prowadzących działalność w lokalach odbiorców, o których mowa w art. 4 ust. 1 pkt 2 i 3","%",{"v":0,"d":"0%"},{"$f":"zaliczki!E8","v":{"v":0,"d":"0.0"}},{"$f":"$D8*F6","v":{"v":0,"d":"0.0"}}]
["-","innych","%",{"$f":"1-D8-D7","v":{"v":1,"d":"100%"}},{"$f":"zaliczki!E9","v":{"v":0,"d":"0.0"}},{"$f":"$D9*F6","v":{"v":0,"d":"0.0"}}]
["b)","Listopad","GJ","na podstawie wystawionych faktur",{"$f":"zaliczki!E10","v":{"v":0,"d":"0.0"}},{"v":0,"d":"0.0"},{"$f":"(E11+E12)*$E$35","v":{"$error":"#DIV/0!"}},{"$f":"(F11+F12)*$E$35","v":{"$error":"#DIV/0!"}}]
["-","gospodarstw domowych w lokalach mieszkalnych i na potrzeby części wspólnych budynków wielolokalowych, o których mowa w art. 4 ust. 1 pkt 2 i 3 ustawy","%",{"v":0,"d":"0%"},{"$f":"zaliczki!E11","v":{"v":0,"d":"0.0"}},{"$f":"$D11*F10","v":{"v":0,"d":"0.0"}}]
["-","podmiotów, o których mowa w art. 4 ust. 1 pkt 4, prowadzących działalność w lokalach odbiorców, o których mowa w art. 4 ust. 1 pkt 2 i 3","%",{"v":0,"d":"0%"},{"$f":"zaliczki!E12","v":{"v":0,"d":"0.0"}},{"$f":"$D12*F10","v":{"v":0,"d":"0.0"}}]
["-","innych","%",{"$f":"1-D12-D11","v":{"v":1,"d":"100%"}},{"$f":"zaliczki!E13","v":{"v":0,"d":"0.0"}},{"$f":"$D13*F10","v":{"v":0,"d":"0.0"}}]
["c)","Grudzień","GJ","na podstawie wystawionych faktur",{"$f":"zaliczki!E14","v":{"v":0,"d":"0.0"}},{"v":0,"d":"0.0"},{"$f":"(E15+E16)*$E$35","v":{"$error":"#DIV/0!"}},{"$f":"(F15+F16)*$E$35","v":{"$error":"#DIV/0!"}}]
["-","gospodarstw domowych w lokalach mieszkalnych i na potrzeby części wspólnych budynków wielolokalowych, o których mowa w art. 4 ust. 1 pkt 2 i 3 ustawy","%",{"v":0,"d":"0%"},{"$f":"zaliczki!E15","v":{"v":0,"d":"0.0"}},{"$f":"$D15*F14","v":{"v":0,"d":"0.0"}}]
["-","podmiotów, o których mowa w art. 4 ust. 1 pkt 4, prowadzących działalność w lokalach odbiorców, o których mowa w art. 4 ust. 1 pkt 2 i 3","%",{"v":0,"d":"0%"},{"$f":"zaliczki!E16","v":{"v":0,"d":"0.0"}},{"$f":"$D16*F14","v":{"v":0,"d":"0.0"}}]
["-","innych","%",{"$f":"1-D16-D15","v":{"v":1,"d":"100%"}},{"$f":"zaliczki!E17","v":{"v":0,"d":"0.0"}},{"$f":"$D17*F14","v":{"v":0,"d":"0.0"}}]
["d)","Styczeń","GJ","na podstawie wystawionych faktur",{"$f":"zaliczki!E19","v":{"v":0,"d":"0.0"}},{"v":0,"d":"0.0"},{"$f":"(E19+E20)*$E$35","v":{"$error":"#DIV/0!"}},{"$f":"(F19+F20)*$E$35","v":{"$error":"#DIV/0!"}}]
["-","gospodarstw domowych w lokalach mieszkalnych i na potrzeby części wspólnych budynków wielolokalowych, o których mowa w art. 4 ust. 1 pkt 2 i 3 ustawy","%",{"v":0,"d":"0%"},{"$f":"zaliczki!E20","v":{"v":0,"d":"0.0"}},{"$f":"$D19*F18","v":{"v":0,"d":"0.0"}}]
["-","podmiotów, o których mowa w art. 4 ust. 1 pkt 4, prowadzących działalność w lokalach odbiorców, o których mowa w art. 4 ust. 1 pkt 2 i 3","%",{"v":0,"d":"0%"},{"$f":"zaliczki!E21","v":{"v":0,"d":"0.0"}},{"$f":"$D20*F18","v":{"v":0,"d":"0.0"}}]
["-","innych","%",{"$f":"1-D20-D19","v":{"v":1,"d":"100%"}},{"$f":"zaliczki!E22","v":{"v":0,"d":"0.0"}},{"$f":"$D21*F18","v":{"v":0,"d":"0.0"}}]
["e)","Luty","GJ","na podstawie wystawionych faktur",{"$f":"zaliczki!E23","v":{"v":0,"d":"0.0"}},{"v":0,"d":"0.0"},{"$f":"(E23+E24)*$E$35","v":{"$error":"#DIV/0!"}},{"$f":"(F23+F24)*$E$35","v":{"$error":"#DIV/0!"}}]
["-","gospodarstw domowych w lokalach mieszkalnych i na potrzeby części wspólnych budynków wielolokalowych, o których mowa w art. 4 ust. 1 pkt 2 i 3 ustawy","%",{"v":0,"d":"0%"},{"$f":"zaliczki!E24","v":{"v":0,"d":"0.0"}},{"$f":"$D23*F22","v":{"v":0,"d":"0.0"}}]
["-","podmiotów, o których mowa w art. 4 ust. 1 pkt 4, prowadzących działalność w lokalach odbiorców, o których mowa w art. 4 ust. 1 pkt 2 i 3","%",{"v":0,"d":"0%"},{"$f":"zaliczki!E25","v":{"v":0,"d":"0.0"}},{"$f":"$D24*F22","v":{"v":0,"d":"0.0"}}]
["-","innych","%",{"$f":"1-D24-D23","v":{"v":1,"d":"100%"}},{"$f":"zaliczki!E26","v":{"v":0,"d":"0.0"}},{"$f":"$D25*F22","v":{"v":0,"d":"0.0"}}]
["f)","Marzec","GJ","na podstawie wystawionych faktur",{"$f":"zaliczki!E27","v":{"v":0,"d":"0.0"}},{"v":0,"d":"0.0"},{"$f":"(E27+E28)*$E$35","v":{"$error":"#DIV/0!"}},{"$f":"(F27+F28)*$E$35","v":{"$error":"#DIV/0!"}}]
["-","gospodarstw domowych w lokalach mieszkalnych i na potrzeby części wspólnych budynków wielolokalowych, o których mowa w art. 4 ust. 1 pkt 2 i 3 ustawy","%",{"v":0,"d":"0%"},{"$f":"zaliczki!E28","v":{"v":0,"d":"0.0"}},{"$f":"$D27*F26","v":{"v":0,"d":"0.0"}}]
["-","podmiotów, o których mowa w art. 4 ust. 1 pkt 4, prowadzących działalność w lokalach odbiorców, o których mowa w art. 4 ust. 1 pkt 2 i 3","%",{"v":0,"d":"0%"},{"$f":"zaliczki!E29","v":{"v":0,"d":"0.0"}},{"$f":"$D28*F26","v":{"v":0,"d":"0.0"}}]
["-","innych","%",{"$f":"1-D28-D27","v":{"v":1,"d":"100%"}},{"$f":"zaliczki!E30","v":{"v":0,"d":"0.0"}},{"$f":"$D29*F26","v":{"v":0,"d":"0.0"}}]
["g)","Kwiecień","GJ","na podstawie wystawionych faktur",{"$f":"zaliczki!E32","v":{"v":0,"d":"0.0"}},{"v":0,"d":"0.0"},{"$f":"(E31+E32)*$E$35","v":{"$error":"#DIV/0!"}},{"$f":"(F31+F32)*$E$35","v":{"$error":"#DIV/0!"}}]
["-","gospodarstw domowych w lokalach mieszkalnych i na potrzeby części wspólnych budynków wielolokalowych, o których mowa w art. 4 ust. 1 pkt 2 i 3 ustawy","%",{"v":0,"d":"0%"},{"$f":"zaliczki!E33","v":{"v":0,"d":"0.0"}},{"$f":"$D31*F30","v":{"v":0,"d":"0.0"}}]
["-","podmiotów, o których mowa w art. 4 ust. 1 pkt 4, prowadzących działalność w lokalach odbiorców, o których mowa w art. 4 ust. 1 pkt 2 i 3","%",{"v":0,"d":"0%"},{"$f":"zaliczki!E34","v":{"v":0,"d":"0.0"}},{"$f":"$D32*F30","v":{"v":0,"d":"0.0"}}]
["-","innych","%",{"$f":"1-D32-D31","v":{"v":1,"d":"100%"}},{"$f":"zaliczki!E35","v":{"v":0,"d":"0.0"}},{"$f":"$D33*F30","v":{"v":0,"d":"0.0"}}]
["2.","Średnia cena wytwarzania ciepła z rekompensatą",null,"arkusz \"rekompensata\"",{"$f":"rekompensata!F15","v":103.82},"SUMA",{"$f":"SUM(G6+G10+G14+G18+G22+G26+G30)","v":{"$error":"#DIV/0!"}},{"$f":"SUM(H6+H10+H14+H18+H22+H26+H30)","v":{"$error":"#DIV/0!"}}]
["3.","REKOMPENSATA","zł/GJ","arkusz \"rekompensata\"",{"$f":"rekompensata!F16","v":{"$error":"#DIV/0!"}},null,"RÓŹNICA",{"$f":"H34-G34","v":{"$error":"#DIV/0!"}}]
[null,"Komórka edytowalna"]